[Event "Titled Tuesday Blitz March 14 Late 2023"]
[White "Filgueiras, Nathan Felipe"]
[Black "Dimitrov, Atanas"]
[WhiteFideId "2188562"]
[BlackFideId "2901315"]
[WhiteElo "2241"]
[BlackElo "2689"]
[Result "1-0"]
[Round "03"]
[TimeControl "180+1"]
[Date "2023.03.14"]
[WhiteClock "0:01:20"]
[BlackClock "0:00:34"]

1. e4 {[%clk 0:03:00]}  c5 {[%clk 0:02:59]} 2. Nf3 {[%clk 0:03:00]}  g6 {[%clk 0:02:58]} 3. d4 {[%clk 0:02:59]}  cxd4 {[%clk 0:02:58]} 4. Nxd4 {[%clk 0:03:00]}  Bg7 {[%clk 0:02:58]} 5. c4 {[%clk 0:03:00]}  Nc6 {[%clk 0:02:59]} 6. Be3 {[%clk 0:03:00]}  Nf6 {[%clk 0:02:57]} 7. Nc3 {[%clk 0:03:00]}  b6 {[%clk 0:02:55]} 8. Be2 {[%clk 0:03:00]}  O-O {[%clk 0:02:56]} 9. O-O {[%clk 0:02:59]}  Bb7 {[%clk 0:02:56]} 10. f3 {[%clk 0:02:55]}  Rc8 {[%clk 0:02:56]} 11. Qd2 {[%clk 0:02:55]}  d6 {[%clk 0:02:50]} 12. Rad1 {[%clk 0:02:54]}  Nd7 {[%clk 0:02:42]} 13. b3 {[%clk 0:02:49]}  Nc5 {[%clk 0:02:30]} 14. Nd5 {[%clk 0:02:43]}  e6 {[%clk 0:02:27]} 15. Nxc6 {[%clk 0:02:37]}  Bxc6 {[%clk 0:02:28]} 16. Nb4 {[%clk 0:02:37]}  Bb7 {[%clk 0:02:20]} 17. Qxd6 {[%clk 0:02:33]}  Qh4 {[%clk 0:01:51]} 18. Qg3 {[%clk 0:02:28]}  Qe7 {[%clk 0:01:49]} 19. Nd3 {[%clk 0:02:21]}  Nxd3 {[%clk 0:01:44]} 20. Bxd3 {[%clk 0:02:22]}  Qa3 {[%clk 0:01:44]} 21. Bb1 {[%clk 0:02:19]}  Rfd8 {[%clk 0:01:42]} 22. Rxd8+ {[%clk 0:02:13]}  Rxd8 {[%clk 0:01:43]} 23. Qc7 {[%clk 0:02:13]}  Bf6 {[%clk 0:01:00]} 24. Qxb7 {[%clk 0:02:11]}  Qb2 {[%clk 0:01:01]} 25. Qc7 {[%clk 0:02:03]}  Kg7 {[%clk 0:00:59]} 26. Qxa7 {[%clk 0:01:50]}  Qc3 {[%clk 0:00:51]} 27. Qxb6 {[%clk 0:01:46]}  g5 {[%clk 0:00:50]} 28. h3 {[%clk 0:01:40]}  h5 {[%clk 0:00:50]} 29. Rc1 {[%clk 0:01:39]}  Qe5 {[%clk 0:00:49]} 30. Qc5 {[%clk 0:01:34]}  Qg3 {[%clk 0:00:48]} 31. Bf2 {[%clk 0:01:34]}  Qf4 {[%clk 0:00:48]} 32. Qe3 {[%clk 0:01:34]}  Qe5 {[%clk 0:00:46]} 33. Rf1 {[%clk 0:01:28]}  Qc7 {[%clk 0:00:37]} 34. Qe2 {[%clk 0:01:23]}  Qe7 {[%clk 0:00:37]} 35. Rd1 {[%clk 0:01:22]}  Ra8 {[%clk 0:00:34]} 36. e5 {[%clk 0:01:20]} 1-0


[Site "https://www.chess.com"]

[Event "Titled Tuesday Blitz March 14 Late 2023"]
[White "Fiorito, Francisco"]
[Black "Ronka, Erik"]
[WhiteFideId "180165"]
[BlackFideId "505080"]
[WhiteElo "2341"]
[BlackElo "2264"]
[Result "1-0"]
[Round "03"]
[TimeControl "180+1"]
[Date "2023.03.14"]
[WhiteClock "0:00:04"]
[BlackClock "0:00:02"]

1. Nf3 {[%clk 0:03:00]}  d5 {[%clk 0:02:43]} 2. g3 {[%clk 0:03:00]}  c6 {[%clk 0:02:42]} 3. Bg2 {[%clk 0:03:00]}  Nf6 {[%clk 0:02:43]} 4. O-O {[%clk 0:03:01]}  Bg4 {[%clk 0:02:44]} 5. c4 {[%clk 0:03:02]}  e6 {[%clk 0:02:39]} 6. Ne5 {[%clk 0:03:00]}  Bf5 {[%clk 0:02:37]} 7. d4 {[%clk 0:03:01]}  Nbd7 {[%clk 0:02:36]} 8. Nc3 {[%clk 0:03:00]}  Be7 {[%clk 0:02:36]} 9. Qb3 {[%clk 0:02:59]}  Qb6 {[%clk 0:02:35]} 10. Nxd7 {[%clk 0:02:58]}  Nxd7 {[%clk 0:02:33]} 11. Qxb6 {[%clk 0:02:19]}  axb6 {[%clk 0:02:33]} 12. cxd5 {[%clk 0:02:13]}  exd5 {[%clk 0:02:32]} 13. Bf4 {[%clk 0:02:13]}  O-O {[%clk 0:02:30]} 14. Rfe1 {[%clk 0:02:10]}  Nf6 {[%clk 0:02:27]} 15. a4 {[%clk 0:01:58]}  Bb4 {[%clk 0:02:25]} 16. h3 {[%clk 0:01:53]}  h5 {[%clk 0:02:14]} 17. Rec1 {[%clk 0:01:51]}  Rfe8 {[%clk 0:01:59]} 18. e3 {[%clk 0:01:48]}  Bd3 {[%clk 0:01:45]} 19. Bc7 {[%clk 0:01:33]}  Ra6 {[%clk 0:01:43]} 20. b3 {[%clk 0:01:21]}  g5 {[%clk 0:01:10]} 21. Ra2 {[%clk 0:01:01]}  Rc8 {[%clk 0:01:00]} 22. Rd2 {[%clk 0:00:42]}  Bf5 {[%clk 0:00:53]} 23. Be5 {[%clk 0:00:38]}  Ne8 {[%clk 0:00:44]} 24. g4 {[%clk 0:00:14]}  hxg4 {[%clk 0:00:43]} 25. hxg4 {[%clk 0:00:15]}  Bxg4 {[%clk 0:00:44]} 26. Rb2 {[%clk 0:00:16]}  Ba3 {[%clk 0:00:41]} 27. Rbb1 {[%clk 0:00:14]}  Bxc1 {[%clk 0:00:41]} 28. Rxc1 {[%clk 0:00:15]}  f6 {[%clk 0:00:41]} 29. Bg3 {[%clk 0:00:15]}  Raa8 {[%clk 0:00:39]} 30. Na2 {[%clk 0:00:14]}  Be6 {[%clk 0:00:36]} 31. Nb4 {[%clk 0:00:14]}  Rd8 {[%clk 0:00:35]} 32. Nd3 {[%clk 0:00:13]}  Rac8 {[%clk 0:00:32]} 33. Bf3 {[%clk 0:00:13]}  Nd6 {[%clk 0:00:32]} 34. Kg2 {[%clk 0:00:13]}  Ne4 {[%clk 0:00:32]} 35. Bh2 {[%clk 0:00:12]}  Nd2 {[%clk 0:00:32]} 36. Be2 {[%clk 0:00:10]}  Nxb3 {[%clk 0:00:30]} 37. Rb1 {[%clk 0:00:11]}  Na5 {[%clk 0:00:24]} 38. Rxb6 {[%clk 0:00:11]}  Rd7 {[%clk 0:00:09]} 39. Nc5 {[%clk 0:00:12]}  Re7 {[%clk 0:00:10]} 40. Nxe6 {[%clk 0:00:12]}  Rxe6 {[%clk 0:00:10]} 41. Bg4 {[%clk 0:00:12]}  Rce8 {[%clk 0:00:11]} 42. Bxe6+ {[%clk 0:00:13]}  Rxe6 {[%clk 0:00:12]} 43. Rb4 {[%clk 0:00:13]}  Re7 {[%clk 0:00:11]} 44. Bd6 {[%clk 0:00:14]}  Rd7 {[%clk 0:00:12]} 45. Bc5 {[%clk 0:00:14]}  Kf7 {[%clk 0:00:12]} 46. Bb6 {[%clk 0:00:14]}  Nc4 {[%clk 0:00:12]} 47. Bc5 {[%clk 0:00:15]}  Ke6 {[%clk 0:00:12]} 48. Kf3 {[%clk 0:00:14]}  f5 {[%clk 0:00:12]} 49. Rb1 {[%clk 0:00:15]}  Rh7 {[%clk 0:00:11]} 50. Rg1 {[%clk 0:00:15]}  g4+ {[%clk 0:00:08]} 51. Kg2 {[%clk 0:00:15]}  Nd2 {[%clk 0:00:08]} 52. Rd1 {[%clk 0:00:15]}  Nf3 {[%clk 0:00:08]} 53. Bb6 {[%clk 0:00:15]}  f4 {[%clk 0:00:07]} 54. exf4 {[%clk 0:00:13]}  Kf5 {[%clk 0:00:08]} 55. Bc5 {[%clk 0:00:08]}  Rh2+ {[%clk 0:00:07]} 56. Kg3 {[%clk 0:00:09]}  Rh3+ {[%clk 0:00:06]} 57. Kg2 {[%clk 0:00:09]}  Kxf4 {[%clk 0:00:05]} 58. Bd6+ {[%clk 0:00:09]}  Kf5 {[%clk 0:00:05]} 59. Bg3 {[%clk 0:00:10]}  Rh7 {[%clk 0:00:05]} 60. a5 {[%clk 0:00:09]}  Re7 {[%clk 0:00:05]} 61. Bd6 {[%clk 0:00:09]}  Re6 {[%clk 0:00:04]} 62. Bc5 {[%clk 0:00:09]}  Re2 {[%clk 0:00:05]} 63. Rb1 {[%clk 0:00:09]}  Ne1+ {[%clk 0:00:05]} 64. Kf1 {[%clk 0:00:09]}  Re6 {[%clk 0:00:05]} 65. Rxe1 {[%clk 0:00:08]}  Rg6 {[%clk 0:00:04]} 66. Re5+ {[%clk 0:00:08]}  Kf4 {[%clk 0:00:04]} 67. Kg2 {[%clk 0:00:09]}  g3 {[%clk 0:00:04]} 68. fxg3+ {[%clk 0:00:08]}  Rxg3+ {[%clk 0:00:04]} 69. Kf2 {[%clk 0:00:08]}  Rb3 {[%clk 0:00:05]} 70. Re7 {[%clk 0:00:08]}  Rb2+ {[%clk 0:00:05]} 71. Ke1 {[%clk 0:00:08]}  Kf3 {[%clk 0:00:06]} 72. Kd1 {[%clk 0:00:08]}  Rb5 {[%clk 0:00:05]} 73. Bb6 {[%clk 0:00:08]}  Rb4 {[%clk 0:00:03]} 74. Kc2 {[%clk 0:00:07]}  Rc4+ {[%clk 0:00:03]} 75. Kb3 {[%clk 0:00:08]}  c5 {[%clk 0:00:03]} 76. Bxc5 {[%clk 0:00:08]}  b5 {[%clk 0:00:03]} 77. axb6 {[%clk 0:00:08]}  Rc1 {[%clk 0:00:03]} 78. b7 {[%clk 0:00:07]}  Kf4 {[%clk 0:00:04]} 79. b8=Q+ {[%clk 0:00:07]}  Kf5 {[%clk 0:00:04]} 80. Qe5+ {[%clk 0:00:07]}  Kg6 {[%clk 0:00:04]} 81. Rg7+ {[%clk 0:00:07]}  Kh6 {[%clk 0:00:04]} 82. Qf6+ {[%clk 0:00:04]}  Kh5 {[%clk 0:00:02]} 83. Qg5# {[%clk 0:00:04]} 1-0


[Site "https://www.chess.com"]

[Event "Titled Tuesday Blitz March 14 Late 2023"]
[White "Fiorito, Joaquin"]
[Black "Zampronha, Wladimir Camilo"]
[WhiteFideId "180173"]
[BlackFideId "2103087"]
[WhiteElo "2157"]
[BlackElo "2176"]
[Result "1-0"]
[Round "03"]
[TimeControl "180+1"]
[Date "2023.03.14"]
[WhiteClock "0:00:13"]
[BlackClock "0:00:10"]

1. d4 {[%clk 0:03:00]}  Nf6 {[%clk 0:02:59]} 2. Nc3 {[%clk 0:03:01]}  e6 {[%clk 0:02:59]} 3. Bf4 {[%clk 0:03:01]}  c5 {[%clk 0:03:00]} 4. e3 {[%clk 0:03:00]}  a6 {[%clk 0:02:58]} 5. Nf3 {[%clk 0:02:59]}  b5 {[%clk 0:02:58]} 6. dxc5 {[%clk 0:02:54]}  Bxc5 {[%clk 0:02:57]} 7. Bd3 {[%clk 0:02:54]}  Bb7 {[%clk 0:02:57]} 8. O-O {[%clk 0:02:54]}  O-O {[%clk 0:02:58]} 9. a3 {[%clk 0:02:42]}  d5 {[%clk 0:02:56]} 10. Qe2 {[%clk 0:02:40]}  Nbd7 {[%clk 0:02:54]} 11. e4 {[%clk 0:02:41]}  dxe4 {[%clk 0:02:53]} 12. Nxe4 {[%clk 0:02:41]}  Nxe4 {[%clk 0:02:53]} 13. Bxe4 {[%clk 0:02:42]}  Bxe4 {[%clk 0:02:53]} 14. Qxe4 {[%clk 0:02:43]}  Nf6 {[%clk 0:02:52]} 15. Qe2 {[%clk 0:02:43]}  Qb6 {[%clk 0:02:45]} 16. c3 {[%clk 0:02:40]}  Nd5 {[%clk 0:02:43]} 17. Bg3 {[%clk 0:02:38]}  Rfd8 {[%clk 0:02:41]} 18. Rad1 {[%clk 0:02:36]}  Rac8 {[%clk 0:02:41]} 19. Ne5 {[%clk 0:02:34]}  Qb7 {[%clk 0:02:31]} 20. Rfe1 {[%clk 0:02:24]}  Nb6 {[%clk 0:02:28]} 21. h4 {[%clk 0:02:21]}  h6 {[%clk 0:01:39]} 22. Bf4 {[%clk 0:02:11]}  Nd5 {[%clk 0:01:34]} 23. Bc1 {[%clk 0:02:10]}  Qe7 {[%clk 0:01:31]} 24. g3 {[%clk 0:02:08]}  Nb6 {[%clk 0:01:19]} 25. Rxd8+ {[%clk 0:02:02]}  Qxd8 {[%clk 0:01:19]} 26. Qf3 {[%clk 0:01:58]}  Qe7 {[%clk 0:01:17]} 27. Rd1 {[%clk 0:01:58]}  Nd5 {[%clk 0:01:13]} 28. Kg2 {[%clk 0:01:16]}  Bd6 {[%clk 0:01:11]} 29. Nd3 {[%clk 0:01:14]}  Nf6 {[%clk 0:01:07]} 30. Re1 {[%clk 0:01:06]}  Nd5 {[%clk 0:01:00]} 31. a4 {[%clk 0:01:00]}  Qf6 {[%clk 0:00:51]} 32. Qg4 {[%clk 0:00:54]}  Rc4 {[%clk 0:00:45]} 33. Re4 {[%clk 0:00:52]}  Rxe4 {[%clk 0:00:42]} 34. Qxe4 {[%clk 0:00:53]}  Qd8 {[%clk 0:00:33]} 35. axb5 {[%clk 0:00:39]}  axb5 {[%clk 0:00:34]} 36. Qg4 {[%clk 0:00:29]}  Nf6 {[%clk 0:00:33]} 37. Qd4 {[%clk 0:00:29]}  Nd5 {[%clk 0:00:32]} 38. b3 {[%clk 0:00:26]}  Qa8 {[%clk 0:00:32]} 39. Kh2 {[%clk 0:00:21]}  Qa2 {[%clk 0:00:31]} 40. c4 {[%clk 0:00:19]}  bxc4 {[%clk 0:00:30]} 41. bxc4 {[%clk 0:00:20]}  Nb4 {[%clk 0:00:21]} 42. Qxd6 {[%clk 0:00:19]}  Nxd3 {[%clk 0:00:21]} 43. Qd8+ {[%clk 0:00:17]}  Kh7 {[%clk 0:00:19]} 44. Qxd3+ {[%clk 0:00:18]}  f5 {[%clk 0:00:20]} 45. Be3 {[%clk 0:00:19]}  g5 {[%clk 0:00:12]} 46. hxg5 {[%clk 0:00:19]}  hxg5 {[%clk 0:00:13]} 47. Qd4 {[%clk 0:00:18]}  Kg6 {[%clk 0:00:14]} 48. c5 {[%clk 0:00:18]}  g4 {[%clk 0:00:13]} 49. Qe5 {[%clk 0:00:17]}  Qa8 {[%clk 0:00:12]} 50. Qxe6+ {[%clk 0:00:17]}  Kg7 {[%clk 0:00:10]} 51. Qxf5 {[%clk 0:00:13]} 1-0


[Site "https://www.chess.com"]

[Event "Titled Tuesday Blitz March 14 Late 2023"]
[White "Friedel, Tom"]
[Black "Diaz Perez, Michel Alejandro"]
[WhiteFideId "2002108"]
[BlackFideId "3517179"]
[WhiteElo "2290"]
[BlackElo "2333"]
[Result "0-1"]
[Round "03"]
[TimeControl "180+1"]
[Date "2023.03.14"]
[WhiteClock "0:00:42"]
[BlackClock "0:00:33"]

1. e4 {[%clk 0:02:59]}  d5 {[%clk 0:02:59]} 2. Nc3 {[%clk 0:02:58]}  d4 {[%clk 0:02:58]} 3. Nce2 {[%clk 0:02:59]}  e5 {[%clk 0:02:58]} 4. d3 {[%clk 0:02:59]}  c5 {[%clk 0:02:57]} 5. f4 {[%clk 0:02:59]}  f6 {[%clk 0:02:55]} 6. Nf3 {[%clk 0:02:59]}  Nc6 {[%clk 0:02:55]} 7. g3 {[%clk 0:02:58]}  Bd6 {[%clk 0:02:55]} 8. Bg2 {[%clk 0:02:58]}  Nge7 {[%clk 0:02:55]} 9. O-O {[%clk 0:02:58]}  O-O {[%clk 0:02:52]} 10. Bd2 {[%clk 0:02:57]}  Be6 {[%clk 0:02:44]} 11. fxe5 {[%clk 0:02:48]}  fxe5 {[%clk 0:02:44]} 12. Ng5 {[%clk 0:02:47]}  Bd7 {[%clk 0:02:41]} 13. c3 {[%clk 0:02:46]}  Qb6 {[%clk 0:02:27]} 14. Qb3+ {[%clk 0:02:27]}  Qxb3 {[%clk 0:02:26]} 15. axb3 {[%clk 0:02:28]}  h6 {[%clk 0:02:21]} 16. Bh3 {[%clk 0:02:26]}  Bxh3 {[%clk 0:02:17]} 17. Nxh3 {[%clk 0:02:26]}  a6 {[%clk 0:02:05]} 18. Kg2 {[%clk 0:02:16]}  Rad8 {[%clk 0:01:53]} 19. Rxf8+ {[%clk 0:02:09]}  Rxf8 {[%clk 0:01:53]} 20. Nhg1 {[%clk 0:02:10]}  Bc7 {[%clk 0:01:49]} 21. Nf3 {[%clk 0:02:08]}  dxc3 {[%clk 0:01:41]} 22. bxc3 {[%clk 0:02:09]}  Rd8 {[%clk 0:01:41]} 23. Ne1 {[%clk 0:02:08]}  Ng6 {[%clk 0:01:34]} 24. Be3 {[%clk 0:02:07]}  Bd6 {[%clk 0:01:24]} 25. Ng1 {[%clk 0:01:32]}  Nf8 {[%clk 0:01:25]} 26. Ngf3 {[%clk 0:01:30]}  Ne6 {[%clk 0:01:25]} 27. Nh4 {[%clk 0:01:30]}  Bf8 {[%clk 0:01:20]} 28. Nf5 {[%clk 0:01:29]}  Kh7 {[%clk 0:01:19]} 29. h4 {[%clk 0:01:26]}  g6 {[%clk 0:01:16]} 30. g4 {[%clk 0:01:16]}  gxf5 {[%clk 0:01:14]} 31. gxf5 {[%clk 0:01:17]}  Ng7 {[%clk 0:01:09]} 32. Rd1 {[%clk 0:01:17]}  Be7 {[%clk 0:01:09]} 33. Kh3 {[%clk 0:01:15]}  Nh5 {[%clk 0:00:56]} 34. Nf3 {[%clk 0:01:15]}  Nf6 {[%clk 0:00:54]} 35. Bf2 {[%clk 0:01:11]}  Nxe4 {[%clk 0:00:53]} 36. Be1 {[%clk 0:01:07]}  Nd6 {[%clk 0:00:50]} 37. Bg3 {[%clk 0:00:49]}  Bf6 {[%clk 0:00:46]} 38. Re1 {[%clk 0:00:46]}  Re8 {[%clk 0:00:36]} 39. Kg4 {[%clk 0:00:44]}  Rg8+ {[%clk 0:00:33]} 40. Kh3 {[%clk 0:00:44]}  Nxf5 {[%clk 0:00:34]} 41. Bxe5 {[%clk 0:00:44]}  Bxe5 {[%clk 0:00:33]} 42. Nxe5 {[%clk 0:00:44]}  Re8 {[%clk 0:00:33]} 43. d4 {[%clk 0:00:45]}  cxd4 {[%clk 0:00:32]} 44. cxd4 {[%clk 0:00:44]}  Nfxd4 {[%clk 0:00:33]} 45. Nxc6 {[%clk 0:00:43]}  Rxe1 {[%clk 0:00:33]} 46. Nxd4 {[%clk 0:00:43]}  Rd1 {[%clk 0:00:34]} 47. Ne6 {[%clk 0:00:42]}  Rd3+ {[%clk 0:00:33]} 0-1


[Site "https://www.chess.com"]

[Event "Titled Tuesday Blitz March 14 Late 2023"]
[White "Garcia Pantoja, Roberto"]
[Black "Doknjas, Neil"]
[WhiteFideId "3509265"]
[BlackFideId "2617587"]
[WhiteElo "2544"]
[BlackElo "2152"]
[Result "1-0"]
[Round "03"]
[TimeControl "180+1"]
[Date "2023.03.14"]
[WhiteClock "0:00:53"]
[BlackClock "0:00:32"]

1. e4 {[%clk 0:03:00]}  c5 {[%clk 0:02:59]} 2. Nf3 {[%clk 0:02:59]}  e6 {[%clk 0:02:59]} 3. d4 {[%clk 0:02:59]}  cxd4 {[%clk 0:02:59]} 4. Nxd4 {[%clk 0:03:00]}  a6 {[%clk 0:03:00]} 5. c4 {[%clk 0:03:00]}  Nf6 {[%clk 0:02:59]} 6. Nc3 {[%clk 0:03:00]}  Bb4 {[%clk 0:03:00]} 7. Qd3 {[%clk 0:02:59]}  Nc6 {[%clk 0:02:56]} 8. Nxc6 {[%clk 0:02:58]}  bxc6 {[%clk 0:02:53]} 9. a3 {[%clk 0:02:44]}  Bxc3+ {[%clk 0:02:52]} 10. Qxc3 {[%clk 0:02:45]}  Nxe4 {[%clk 0:02:44]} 11. Qxg7 {[%clk 0:02:44]}  Qf6 {[%clk 0:02:40]} 12. Qxf6 {[%clk 0:02:33]}  Nxf6 {[%clk 0:02:41]} 13. b4 {[%clk 0:02:33]}  d5 {[%clk 0:02:16]} 14. Bb2 {[%clk 0:02:32]}  Ke7 {[%clk 0:02:16]} 15. f3 {[%clk 0:02:07]}  h5 {[%clk 0:02:10]} 16. Kf2 {[%clk 0:02:02]}  Rg8 {[%clk 0:02:07]} 17. Bd3 {[%clk 0:01:57]}  Bd7 {[%clk 0:01:45]} 18. cxd5 {[%clk 0:01:43]}  cxd5 {[%clk 0:01:43]} 19. Rhc1 {[%clk 0:01:42]}  Ne8 {[%clk 0:01:37]} 20. Rc5 {[%clk 0:01:39]}  Nd6 {[%clk 0:01:35]} 21. a4 {[%clk 0:01:32]}  Rgc8 {[%clk 0:01:33]} 22. Bd4 {[%clk 0:01:29]}  Nb7 {[%clk 0:01:17]} 23. Rxc8 {[%clk 0:01:27]}  Bxc8 {[%clk 0:01:17]} 24. Rc1 {[%clk 0:01:23]}  Kd6 {[%clk 0:01:07]} 25. f4 {[%clk 0:01:18]}  Bd7 {[%clk 0:01:07]} 26. Be5+ {[%clk 0:01:18]}  Ke7 {[%clk 0:01:07]} 27. Rc7 {[%clk 0:01:18]}  Nd8 {[%clk 0:01:06]} 28. b5 {[%clk 0:01:16]}  Ke8 {[%clk 0:00:47]} 29. Bd6 {[%clk 0:01:01]}  axb5 {[%clk 0:00:43]} 30. Bxb5 {[%clk 0:00:53]}  Bxb5 {[%clk 0:00:33]} 31. Re7+ {[%clk 0:00:54]}  Kf8 {[%clk 0:00:34]} 32. Ra7+ {[%clk 0:00:53]}  Kg7 {[%clk 0:00:34]} 33. Rxa8 {[%clk 0:00:54]}  Nb7 {[%clk 0:00:33]} 34. Bf8+ {[%clk 0:00:52]}  Kf6 {[%clk 0:00:32]} 35. axb5 {[%clk 0:00:53]} 1-0


[Site "https://www.chess.com"]

[Event "Titled Tuesday Blitz March 14 Late 2023"]
[White "Grinev, Valeriy"]
[Black "Kravtsiv, Martyn"]
[WhiteFideId "14117517"]
[BlackFideId "14113147"]
[WhiteElo "2365"]
[BlackElo "2695"]
[Result "0-1"]
[Round "03"]
[TimeControl "180+1"]
[Date "2023.03.14"]
[WhiteClock "0:00:34"]
[BlackClock "0:00:31"]

1. d4 {[%clk 0:02:57]}  Nf6 {[%clk 0:02:59]} 2. c4 {[%clk 0:02:57]}  e6 {[%clk 0:03:00]} 3. Nc3 {[%clk 0:02:57]}  d5 {[%clk 0:03:00]} 4. cxd5 {[%clk 0:02:57]}  exd5 {[%clk 0:03:01]} 5. Bg5 {[%clk 0:02:56]}  c6 {[%clk 0:03:00]} 6. e3 {[%clk 0:02:57]}  Be7 {[%clk 0:03:00]} 7. Bd3 {[%clk 0:02:57]}  Nbd7 {[%clk 0:03:00]} 8. Qc2 {[%clk 0:02:57]}  Nh5 {[%clk 0:02:59]} 9. Bxe7 {[%clk 0:02:56]}  Qxe7 {[%clk 0:03:00]} 10. Nge2 {[%clk 0:02:55]}  g6 {[%clk 0:03:00]} 11. O-O {[%clk 0:02:51]}  O-O {[%clk 0:02:58]} 12. Rab1 {[%clk 0:02:51]}  a5 {[%clk 0:02:58]} 13. Rbe1 {[%clk 0:02:52]}  Ndf6 {[%clk 0:02:55]} 14. Nc1 {[%clk 0:02:46]}  b6 {[%clk 0:02:51]} 15. f3 {[%clk 0:02:44]}  c5 {[%clk 0:02:51]} 16. Qd2 {[%clk 0:02:23]}  Bb7 {[%clk 0:02:43]} 17. Bb1 {[%clk 0:02:03]}  Rfd8 {[%clk 0:02:38]} 18. Nd3 {[%clk 0:01:59]}  Ba6 {[%clk 0:02:36]} 19. Rf2 {[%clk 0:01:59]}  Bxd3 {[%clk 0:02:18]} 20. Bxd3 {[%clk 0:01:59]}  Rab8 {[%clk 0:02:14]} 21. Bb5 {[%clk 0:01:59]}  Ng7 {[%clk 0:02:11]} 22. Rd1 {[%clk 0:01:38]}  Ne6 {[%clk 0:02:10]} 23. Qc1 {[%clk 0:01:37]}  Rbc8 {[%clk 0:02:07]} 24. dxc5 {[%clk 0:01:37]}  bxc5 {[%clk 0:02:01]} 25. Qb1 {[%clk 0:01:34]}  Rb8 {[%clk 0:01:55]} 26. Bf1 {[%clk 0:01:32]}  Qa7 {[%clk 0:01:44]} 27. Rfd2 {[%clk 0:01:30]}  c4 {[%clk 0:01:43]} 28. Re1 {[%clk 0:01:19]}  d4 {[%clk 0:01:24]} 29. exd4 {[%clk 0:01:19]}  Rxd4 {[%clk 0:01:25]} 30. Rxd4 {[%clk 0:01:18]}  Qxd4+ {[%clk 0:01:25]} 31. Kh1 {[%clk 0:01:19]}  Qd2 {[%clk 0:01:25]} 32. Na4 {[%clk 0:01:12]}  Nf4 {[%clk 0:01:20]} 33. Qd1 {[%clk 0:01:10]}  Qf2 {[%clk 0:01:15]} 34. Re5 {[%clk 0:00:58]}  N6d5 {[%clk 0:01:01]} 35. g3 {[%clk 0:00:48]}  c3 {[%clk 0:00:48]} 36. bxc3 {[%clk 0:00:36]}  Ne3 {[%clk 0:00:38]} 37. Rxe3 {[%clk 0:00:36]}  Qxe3 {[%clk 0:00:38]} 38. gxf4 {[%clk 0:00:37]}  Qxf4 {[%clk 0:00:38]} 39. Nc5 {[%clk 0:00:35]}  Rb2 {[%clk 0:00:32]} 40. Nd3 {[%clk 0:00:34]}  Qxh2# {[%clk 0:00:31]} 0-1


[Site "https://www.chess.com"]

[Event "Titled Tuesday Blitz March 14 Late 2023"]
[White "Grycel, Kamil"]
[Black "Sakun, Volodymyr"]
[WhiteFideId "1115499"]
[BlackFideId "14114062"]
[WhiteElo "2467"]
[BlackElo "2331"]
[Result "0-1"]
[Round "03"]
[TimeControl "180+1"]
[Date "2023.03.14"]
[WhiteClock "0:00:01"]
[BlackClock "0:00:06"]

1. b3 {[%clk 0:03:00]}  e5 {[%clk 0:02:59]} 2. Bb2 {[%clk 0:03:01]}  Nc6 {[%clk 0:03:00]} 3. Nf3 {[%clk 0:03:01]}  e4 {[%clk 0:03:00]} 4. Nd4 {[%clk 0:03:02]}  Nf6 {[%clk 0:02:59]} 5. e3 {[%clk 0:03:02]}  d5 {[%clk 0:02:56]} 6. Nxc6 {[%clk 0:03:02]}  bxc6 {[%clk 0:02:56]} 7. d3 {[%clk 0:03:02]}  Bb4+ {[%clk 0:02:47]} 8. Nd2 {[%clk 0:03:02]}  Qe7 {[%clk 0:02:46]} 9. Be2 {[%clk 0:02:49]}  exd3 {[%clk 0:02:37]} 10. cxd3 {[%clk 0:02:49]}  O-O {[%clk 0:02:33]} 11. O-O {[%clk 0:02:48]}  Bd6 {[%clk 0:02:33]} 12. h3 {[%clk 0:02:43]}  c5 {[%clk 0:02:31]} 13. Nf3 {[%clk 0:02:40]}  c6 {[%clk 0:02:30]} 14. d4 {[%clk 0:02:34]}  Bb7 {[%clk 0:02:13]} 15. Rc1 {[%clk 0:02:30]}  Ne4 {[%clk 0:02:01]} 16. dxc5 {[%clk 0:02:21]}  Bxc5 {[%clk 0:02:01]} 17. Nd4 {[%clk 0:02:21]}  f5 {[%clk 0:01:52]} 18. b4 {[%clk 0:01:17]}  Bxd4 {[%clk 0:01:52]} 19. Qxd4 {[%clk 0:01:16]}  a5 {[%clk 0:01:52]} 20. b5 {[%clk 0:01:06]}  c5 {[%clk 0:01:51]} 21. Qd3 {[%clk 0:00:53]}  c4 {[%clk 0:01:16]} 22. Qd4 {[%clk 0:00:53]}  Rac8 {[%clk 0:01:15]} 23. Bf3 {[%clk 0:00:52]}  c3 {[%clk 0:01:04]} 24. Bxc3 {[%clk 0:00:46]}  Rc4 {[%clk 0:01:02]} 25. Qe5 {[%clk 0:00:36]}  Qf7 {[%clk 0:00:33]} 26. Bxe4 {[%clk 0:00:36]}  Rxe4 {[%clk 0:00:31]} 27. Qd6 {[%clk 0:00:35]}  f4 {[%clk 0:00:29]} 28. exf4 {[%clk 0:00:25]}  Rxf4 {[%clk 0:00:29]} 29. Qb6 {[%clk 0:00:18]}  d4 {[%clk 0:00:20]} 30. Bxd4 {[%clk 0:00:17]}  Qd5 {[%clk 0:00:20]} 31. f3 {[%clk 0:00:10]}  Qxd4+ {[%clk 0:00:19]} 32. Qxd4 {[%clk 0:00:09]}  Rxd4 {[%clk 0:00:20]} 33. Rfe1 {[%clk 0:00:09]}  Rd7 {[%clk 0:00:16]} 34. b6 {[%clk 0:00:08]}  Rc8 {[%clk 0:00:13]} 35. Rb1 {[%clk 0:00:07]}  Rc5 {[%clk 0:00:10]} 36. Re8+ {[%clk 0:00:06]}  Kf7 {[%clk 0:00:10]} 37. Rb8 {[%clk 0:00:07]}  Ke6 {[%clk 0:00:09]} 38. Re1+ {[%clk 0:00:07]}  Kd6 {[%clk 0:00:09]} 39. Rd1+ {[%clk 0:00:07]}  Rd5 {[%clk 0:00:09]} 40. Rc1 {[%clk 0:00:06]}  Rb5 {[%clk 0:00:08]} 41. Rd1+ {[%clk 0:00:06]}  Bd5 {[%clk 0:00:08]} 42. b7 {[%clk 0:00:05]}  Rbxb7 {[%clk 0:00:05]} 43. Ra8 {[%clk 0:00:04]}  Rb5 {[%clk 0:00:05]} 44. Ra6+ {[%clk 0:00:04]}  Ke7 {[%clk 0:00:05]} 45. Re1+ {[%clk 0:00:04]}  Kf7 {[%clk 0:00:06]} 46. Kh2 {[%clk 0:00:02]}  Bxa2 {[%clk 0:00:06]} 47. Re3 {[%clk 0:00:02]}  Bb3 {[%clk 0:00:05]} 48. Rc3 {[%clk 0:00:01]}  a4 {[%clk 0:00:06]} 0-1


[Site "https://www.chess.com"]